Cogmind - Beta 10.2 @@@ ROGUE MODE // 2020.12.24 @ 16:03:47 Player: Demise Result: Self-destructed Performance ------------- Evolutions (3) 1500 Regions Visited (8) 1600 Robots Destroyed (100) 500 Value Destroyed (2553) 2553 Prototype IDs (38) 760 Alien Tech Used (0) 0 Bonus (395) 395 TOTAL SCORE: 7308 Bonus ------- Follower Combat Kills 112 Aligned with FarCom 300 Friendly Fire -17 Cogmind --------- Core Integrity 477/700 Matter 159/300 Energy 310/310 System Corruption 1% Temperature Cool (108) Movement Treading (285) Ox7 Location -7/Factory Parts ------- > --- POWER (1) -------- Reinforced Fission Core > --- PROPULSION (2) --- Advanced Treads Advanced Myomer Leg > --- UTILITY (8) ------ High-capacity Storage Unit High-capacity Storage Unit High-capacity Storage Unit High-capacity Storage Unit Improved Power Shielding Light Armor Plating Reactive Plating EX Chip 2 > --- WEAPON (2) ------- 8R-AWN's Boregun 8R-AWN's Boregun > --- INVENTORY (36) --- Makeshift Power Source Light Treads Light Treads Improved Treads Experimental Heat Sink High-capacity Storage Unit Superbattery (2000) High-capacity Matter Pod (200) Gravity Neutralizing Apparatus Experimental Sensor Array 0b10 Alert Chip Makeshift Salvage Targeting Computer Experimental Targeting Computer Advanced Core Analyzer Improved Armor Integrity Analyzer Advanced Weapon Cycler Improved Light Armor Plating Improved EM Shotgun Advanced Beam Rifle Advanced Beam Rifle Faulty Advanced Beam Rifle Heavy Assault Rifle Heavy Assault Rifle Heavy Assault Rifle Flak Gun Precision Assault Rifle Shock Bomb Launcher Heavy Missile Launcher Field Lobotomy Kit Mining Laser Plasma Cutter Scythe Peak State ------------ > --- POWER ------------ Reinforced Fission Core > --- PROPULSION ------- Advanced Myomer Leg Advanced Myomer Leg > --- UTILITY ---------- High-capacity Storage Unit High-capacity Storage Unit High-capacity Storage Unit High-capacity Storage Unit 8R-AWN's Armor/EX > --- WEAPON ----------- AWS/EX-DEC > --- INVENTORY -------- Makeshift Power Source Light Treads Light Treads Improved Treads Experimental Heat Sink High-capacity Storage Unit Superbattery High-capacity Matter Pod Gravity Neutralizing Apparatus Experimental Sensor Array 0b10 Alert Chip Makeshift Salvage Targeting Computer Experimental Targeting Computer Advanced Core Analyzer Improved Armor Integrity Analyzer Advanced Weapon Cycler Advanced Transmission Jammer Improved Power Shielding EX Chip 1 EX Chip 2 Advanced Beam Rifle Advanced Beam Rifle Advanced Beam Rifle Heavy Assault Rifle Heavy Assault Rifle Improved Assault Rifle Improved Assault Rifle 8R-AWN's Boregun 8R-AWN's Boregun Rocket Launcher Field Lobotomy Kit Mining Laser Plasma Cutter Scythe [Rating: 81] Favorites ----------- Power Reinforced Fission Core Engine Improved Ion Engine Power Core Reinforced Fission Core Reactor Cold Fusion Reactor Propulsion Light Treads Treads Light Treads Leg Advanced Myomer Leg Flight Unit Flight Unit Utility High-capacity Storage Unit Device Experimental Sensor Array Storage High-capacity Storage Unit Processor Salvage Targeting Computer Hackware EX Chip 2 Protection Improved Power Shielding Weapon Improved Assault Rifle Energy Gun Improved EM Shotgun Ballistic Gun Improved Assault Rifle Launcher Rocket Launcher Special Weapon Plasma Cutter Build | -11 -10 -10 -9 -9 -9 -8 -8 -7 ------- Run | Scr Mat Min Mat Min Exi Min Mat Fac Slots Evolved 6 | . . . 2 . . . 2 2 Power . | . . . . . . . . . Propulsion . | . . . . . . . . . Utility 6 | . . . 2 . . . 2 2 Weapon . | . . . . . . . . . Parts Attached 137 | 5 15 . 22 4 41 6 30 14 Power 8 | . 2 . 3 . 3 . . . Engine 4 | . 1 . 3 . . . . . Core 3 | . 1 . . . 2 . . . Reactor 1 | . . . . . 1 . . . Propulsion 17 | 2 2 . 2 . 5 . 5 1 Treads 11 | 2 2 . 2 . 3 . 1 1 Leg 4 | . . . . . 2 . 2 . Wheel . | . . . . . . . . . Hover . | . . . . . . . . . Flight 2 | . . . . . . . 2 . Utility 62 | 1 8 . 6 . 23 2 16 6 Device 10 | . . . 1 . 4 . 5 . Storage 21 | 1 4 . 2 . 13 1 . . Processor 5 | . 3 . . . 2 . . . Hackware 2 | . . . . . . . 2 . Protection 24 | . 1 . 3 . 4 1 9 6 Artifact . | . . . . . . . . . Weapon 50 | 2 3 . 11 4 10 4 9 7 Energy Gun 8 | . . . 1 1 1 2 3 . Energy Cannon . | . . . . . . . . . Ballistic Gun 36 | 2 3 . 9 2 6 2 5 7 Ballistic Cannon . | . . . . . . . . . Launcher 3 | . . . . 1 2 . . . Special Weapon 3 | . . . 1 . 1 . 1 . Impact Weapon . | . . . . . . . . . Slashing Weapon . | . . . . . . . . . Piercing Weapon . | . . . . . . . . . Special Melee Weapon . | . . . . . . . . . Unidentified Prototypes 14 | . . . 2 1 6 1 3 1 Parts Lost 22 | . 2 . 1 . 9 . 2 8 Power 1 | . 1 . . . . . . . Propulsion 5 | . . . . . 4 . . 1 Utility 7 | . . . . . 2 . 1 4 Weapon 9 | . 1 . 1 . 3 . 1 3 Highest Loss Streak 5 | . 1 . 1 . 5 . 1 3 Average Slot Usage (%) 95 | . 98 100 99 100 88 87 96 98 Engine 4 | . 4 . 7 11 5 . . . Core 6 | . 8 14 3 . 5 11 9 7 Treads 14 | . 28 28 22 22 10 . . 1 Leg 7 | . . . . . 10 22 17 13 Storage 32 | . 19 28 33 44 33 43 36 30 Processor 3 | . 4 . . . 9 . . . Protection 5 | . 2 . 10 . . . 10 20 Energy Gun 2 | . . . . . 1 9 6 4 Ballistic Gun 16 | . 28 28 21 22 9 . 9 10 Naked Turns . | . . . . . . . . . Heaviest Build 183 | 7 43 43 77 77 159 159 183 176 Greatest Support 60 | 40 40 40 40 40 60 60 60 60 Greatest Overweight (x) 7 | . 1 1 1 1 4 2 5 7 Average Overweight (x) 1 | . . 1 1 1 1 1 2 2 Largest Inventory Capacity 36 | 6 16 16 28 28 36 36 36 36 Average Capacity 25 | 5 12 16 22 28 27 35 36 36 Most Carried 36 | 5 16 16 28 28 36 36 36 36 Average Carried 24 | 3 11 15 21 27 25 34 35 34 Final Capacity 36 | 6 16 16 28 28 36 36 36 36 Final Carried 36 | 5 16 16 28 28 36 35 35 32 Class Distribution -------------------- 68% | Hauler-Mutant 28% | Mutant 3% | Scavenger-Mutant Dominant Class ---------------- Mutant | -10/Materials Mutant | -10/Mines Hauler-Mutant | -9/Materials Hauler-Mutant | -9/Mines Hauler-Mutant | -9/Exiles Hauler-Mutant | -8/Mines Hauler-Mutant | -8/Materials Hauler-Mutant | -7/Factory Resources | -11 -10 -10 -9 -9 -9 -8 -8 -7 ----------- Run | Scr Mat Min Mat Min Exi Min Mat Fac Matter Collected 4155 | 450 642 98 417 123 1191 299 475 460 Remotely 16 | . . . . . 16 . . . Salvage Created 4025 | 274 681 189 377 131 583 406 656 728 Parts 295 | 26 43 7 25 10 89 10 44 41 Haulers Intercepted 8 | . 2 . 2 . . . 3 1 Recyclers Shooed 2 | . 1 . . . . . 1 . Parts Field Recycled . | . . . . . . . . . Retrieved Matter . | . . . . . . . . . Parts Self-Destructed . | . . . . . . . . . Prevented . | . . . . . . . . . Kills | -11 -10 -10 -9 -9 -9 -8 -8 -7 ------- Run | Scr Mat Min Mat Min Exi Min Mat Fac Combat Hostiles Destroyed 65 | . 11 4 6 5 4 7 13 15 Guns 61 | . 11 4 6 5 1 6 13 15 AOE 3 | . . . . . 3 . . . Classes Destroyed 16 | 3 4 . 2 1 3 . 1 2 Worker 2 | 2 . . . . . . . . Builder 1 | . . . 1 . . . . . Tunneler 8 | 8 . . . . . . . . Hauler 8 | . 2 . 2 . . . 3 1 Recycler 2 | 1 1 . . . . . . . Operator 1 | . 1 . . . . . . . Turret 1 | . . . . . 1 . . . Watcher 5 | . 2 . 2 . . . 1 . Swarmer 15 | . . . . 3 . . 6 6 Grunt 31 | . 11 4 5 2 . 5 1 3 Duelist 2 | . . . 1 . . 1 . . Sentry 10 | . . . . . . . 6 4 Hunter 1 | . . . . . . . . 1 Programmer 1 | . . . . . . . . 1 Zionite 8 | . . . . . 8 . . . Assembled 3 | . . . . . 3 . . . Best Kill Streak 7 | 6 4 2 3 3 7 3 5 5 Combat Bots Only 5 | . 4 2 2 3 3 3 5 5 Max Kills in Single Turn 2 | 1 1 1 1 2 2 1 2 2 Gunslinging 1 | . . . . 1 . . . 1 Exploded 2 | . . . . . 2 . . . Melee . | . . . . . . . . . Uniques/NPCs Destroyed 5 | . . . . . 4 1 . . 8R-AWN (-9/Exiles) EX-HEX (-9/Exiles) EX-DEC (-9/Exiles) EX-BIN (-9/Exiles) AD-0RF (-8/Mines) Combat | -11 -10 -10 -9 -9 -9 -8 -8 -7 -------- Run | Scr Mat Min Mat Min Exi Min Mat Fac Damage Taken 5446 | . 522 116 538 63 1352 346 717 1792 Core 806 | . 43 31 55 . 264 75 115 223 Absorbed by Shields . | . . . . . . . . . Core Remaining (%) 62 | 100 . 70 . . . 1 79 . Volleys Fired 360 | 25 62 11 38 5 106 2 49 62 Largest 2 | 2 2 2 2 2 2 2 2 2 Hottest 100 | 40 46 46 100 46 56 60 100 90 Shots Fired 705 | 50 124 22 75 14 187 34 87 112 Gun 675 | 50 124 22 74 14 163 34 82 112 Cannon . | . . . . . . . . . Launcher 7 | . . . . . 7 . . . Special 23 | . . . 1 . 17 . 5 . Kinetic 618 | 50 124 22 74 14 163 4 60 107 Thermal 23 | . . . 1 . 17 . 5 . Explosive 7 | . . . . . 7 . . . Electromagnetic 57 | . . . . . . 30 22 5 Robot Hit Streak 59 | 14 13 9 25 13 59 15 18 20 Robot Miss Streak 9 | 2 6 2 3 1 2 2 2 9 Penetration Max 1 | . . . . . . . . 1 Secondary Targets 3 | . 1 . . 1 . . . 1 Max Gunslinging Chain 1 | . 1 . . 1 . . . 1 Autonomous 32 | . . . . . . 30 2 . Shots Hit Robots 535 | 37 82 15 60 8 146 30 65 92 Core Hits 221 | 16 34 5 20 6 47 13 27 53 Critical Hits 10 | . . . . . 1 3 . 6 Critical Kills 3 | . . . . . 1 1 . 1 Critical Parts Destroyed 6 | . . . . . . 1 . 5 Melee Attacks . | . . . . . . . . . Impact . | . . . . . . . . . Slashing . | . . . . . . . . . Piercing . | . . . . . . . . . Sneak Attacks . | . . . . . . . . . Combat Hostiles . | . . . . . . . . . Follow-up Attacks . | . . . . . . . . . Damage Inflicted 8622 | 403 995 299 863 146 2626 722 1055 1513 Guns 7894 | 403 995 299 859 146 2015 620 1044 1513 Cannons . | . . . . . . . . . Explosions 542 | . . . . . 440 102 . . Melee . | . . . . . . . . . Ramming 15 | . . . 4 . . . 11 . Kinetic 6897 | 403 995 299 859 146 2015 23 730 1427 Thermal 273 | . . . . . 171 102 . . Explosive 440 | . . . . . 440 . . . Electromagnetic 997 | . . . . . . 597 314 86 Impact . | . . . . . . . . . Slashing . | . . . . . . . . . Piercing . | . . . . . . . . . Highest Corruption 5 | . . . . 5 5 5 . 1 Average Corruption 4 | . . . . 5 5 5 . 1 Corruption Purged . | . . . . . . . . . Effects 113 | . . . . 29 74 9 . 1 Message Errors 34 | . . . . 11 19 3 . 1 Matter Fused 29 | . . . . 4 22 3 . . Heat Flow Errors 7 | . . . . . 7 . . . Energy Discharges 7 | . . . . 4 2 1 . . Data Loss (minor) 12 | . . . . 4 7 1 . . Data Loss (major) 4 | . . . . 1 2 1 . . Misfires 6 | . . . . 4 2 . . . Targeting Errors 11 | . . . . 1 10 . . . Weapon Failures 3 | . . . . . 3 . . . Overload Shots . | . . . . . . . . . Overflow Damage . | . . . . . . . . . Projectiles . | . . . . . . . . . Explosions . | . . . . . . . . . Melee . | . . . . . . . . . Knockbacks . | . . . . . . . . . Impact . | . . . . . . . . . Kinetic . | . . . . . . . . . Secondary . | . . . . . . . . . Self-Inflicted Damage 68 | . . . . . . 21 47 . Shots 2 | . . . . . . 1 1 . Rammed 2 | . . . 1 . . . 1 . Targets Rammed 2 | . . . 1 . . . 1 . Kicked . | . . . . . . . . . Crushed . | . . . . . . . . . Highest Temperature 272 | . 18 12 12 2 272 104 190 152 Average Temperature 60 | . 5 6 3 2 120 57 50 52 Received Heat Transfer 1539 | . 294 54 183 24 . 321 189 474 Siege Activations . | . . . . . . . . . Robots Corrupted 1 | . . . . . . 1 . . Combat Hostiles 1 | . . . . . . 1 . . Parts Fried 1 | . . . . . . . 1 . Impact Corruptions . | . . . . . . . . . Robots Melted . | . . . . . . . . . Combat Hostiles . | . . . . . . . . . Parts Melted . | . . . . . . . . . Heat Transferred 742 | . . . . . 592 150 . . Parts Sabotaged . | . . . . . . . . . Parts Stolen . | . . . . . . . . . Parts Stripped . | . . . . . . . . . Power Chain Reactions 2 | . . . . . . 1 1 . Missiles Intercepted . | . . . . . . . . . Alert | -11 -10 -10 -9 -9 -9 -8 -8 -7 ------- Run | Scr Mat Min Mat Min Exi Min Mat Fac Peak Influence 262 | 55 262 162 196 131 . 129 172 250 Initial 77 | . 35 32 . 5 . . 50 77 Average 69 | 26 136 29 62 44 . 88 49 106 Maximum Alert Level 1 | . 1 . . . . . . 1 Low Security (%) 95 | 100 83 100 100 100 . 100 100 88 Level 1 4 | . 16 . . . . . . 11 Level 2 . | . . . . . . . . . Level 3 . | . . . . . . . . . Level 4 . | . . . . . . . . . Level 5 . | . . . . . . . . . High Security . | . . . . . . . . . Max Security . | . . . . . . . . . Squads Dispatched 10 | . 2 1 1 . . . 2 4 Investigation 4 | . 1 1 1 . . . 1 . Extermination 1 | . . . . . . . . 1 Reinforcement 5 | . 1 . . . . . 1 3 Assault . | . . . . . . . . . Garrison . | . . . . . . . . . Intercept . | . . . . . . . . . Construction Impeded 2 | . . . . . . . . 2 Haulers Reinforced 1 | . . . . . . . . 1 Stealth | -11 -10 -10 -9 -9 -9 -8 -8 -7 --------- Run | Scr Mat Min Mat Min Exi Min Mat Fac Distress Signals 3 | . . . 2 . . . . 1 Communications Jammed . | . . . . . . . . . Distress Signals . | . . . . . . . . . Times Spotted 120 | . 21 4 26 8 20 8 16 17 Peak Tracking Total 9 | . 5 2 7 3 9 4 5 6 Tactical Retreats 7 | . 2 . . . 3 1 . 1 Traps | -11 -10 -10 -9 -9 -9 -8 -8 -7 ------- Run | Scr Mat Min Mat Min Exi Min Mat Fac Traps Triggered 1 | . . 1 . . . . . . Indirectly . | . . . . . . . . . Trap Hack Attempts . | . . . . . . . . . Triggered . | . . . . . . . . . Disarmed . | . . . . . . . . . Reprogrammed . | . . . . . . . . . Reused . | . . . . . . . . . Traps Extracted . | . . . . . . . . . Installed . | . . . . . . . . . Triggered . | . . . . . . . . . Exploded 3 | . . . . . 3 . . . Machines | -11 -10 -10 -9 -9 -9 -8 -8 -7 ---------- Run | Scr Mat Min Mat Min Exi Min Mat Fac Machines Disabled 15 | . 2 1 . . 8 1 2 1 Max in Single Turn 2 | . 1 1 . . 2 1 1 1 Machines Sabotaged . | . . . . . . . . . Garrisons Compromised . | . . . . . . . . . Overloaded Fab Kills . | . . . . . . . . . Fab Network Shutdowns . | . . . . . . . . . Hacking | -11 -10 -10 -9 -9 -9 -8 -8 -7 --------- Run | Scr Mat Min Mat Min Exi Min Mat Fac Machines Accessed 25 | . 9 2 8 . 2 . 2 2 Terminals 15 | . 7 . 5 . . . 1 2 Fabricators . | . . . . . . . . . Repair Stations 1 | . 1 . . . . . . . Recycling Units 3 | . 1 . 2 . . . . . Scanalyzers 2 | . . . 1 . . . 1 . Garrison Access . | . . . . . . . . . Total Hacks 83 | . 31 2 26 . 2 . 14 8 Successful 58 | . 19 2 16 . 2 . 12 7 Failed 24 | . 11 . 10 . . . 2 1 Catastrophic . | . . . . . . . . . Database Lockouts 1 | . 1 . . . . . . . Manual 53 | . 24 . 19 . 1 . 3 6 Terminals 56 | . 26 . 19 . . . 3 8 Fabricators . | . . . . . . . . . Repair Stations 3 | . 3 . . . . . . . Recycling Units 7 | . 2 . 5 . . . . . Scanalyzers 13 | . . . 2 . . . 11 . Garrison Access . | . . . . . . . . . Terminal Hacks 22 | . 10 2 4 . 2 . . 4 Record 2 | . 1 . . . 1 . . . Part Schematic 1 | . . . 1 . . . . . Robot Analysis 5 | . 5 . . . . . . . Open Door 2 | . . 2 . . . . . . Level Access Points 1 | . 1 . . . . . . . Branch Access Points 2 | . 1 . 1 . . . . . Terminal Index 3 | . 1 . 1 . . . . 1 Fabricator Index 1 | . . . . . . . . 1 Scanalyzer Index 1 | . . . . . . . . 1 Locate Traps 2 | . . . 1 . . . . 1 Zone Layout 1 | . 1 . . . . . . . EX-Prototype ID Bank 1 | . . . . . 1 . . . Fabricator Hacks . | . . . . . . . . . Repair Station Hacks 3 | . 3 . . . . . . . Scan Component 2 | . 2 . . . . . . . Repair 1 | . 1 . . . . . . . Recycling Unit Hacks 2 | . . . 2 . . . . . Report Inventory 2 | . . . 2 . . . . . Scanalyzer 13 | . . . 2 . . . 11 . Insert Component 6 | . . . 1 . . . 5 . Analyze 7 | . . . 1 . . . 6 . Garrison Access Hacks . | . . . . . . . . . Unauthorized Hacks 18 | . 6 . 8 . . . 1 3 Terminals 16 | . 5 . 7 . . . 1 3 Track 1 | . . . 1 . . . . . Assimilate 1 | . . . 1 . . . . . Botnet 11 | . 4 . 4 . . . 1 2 Operators 3 | . 1 . 1 . . . . 1 Fabricators . | . . . . . . . . . Repair Stations . | . . . . . . . . . Recycling Units 2 | . 1 . 1 . . . . . Mask 2 | . 1 . 1 . . . . . Scanalyzers . | . . . . . . . . . Garrison Access . | . . . . . . . . . Data Cores Recovered . | . . . . . . . . . Used . | . . . . . . . . . Hacking Detections 21 | . 9 . 8 . . . 2 2 Full Trace Events 3 | . 1 . 1 . . . 1 . Feedback Events . | . . . . . . . . . Feedback Blocked . | . . . . . . . . . Robot Schematics Acquired . | . . . . . . . . . Robots Built . | . . . . . . . . . Matter . | . . . . . . . . . Time . | . . . . . . . . . Total Robot Build Rating . | . . . . . . . . . Part Schematics Acquired 7 | . . . 2 . . . 5 . Parts Built . | . . . . . . . . . Matter . | . . . . . . . . . Time . | . . . . . . . . . Total Part Build Rating . | . . . . . . . . . Parts Repaired 1 | . 1 . . . . . . . Time 26 | . 26 . . . . . . . Parts Recycled . | . . . . . . . . . Recycled Matter . | . . . . . . . . . Retrieved Matter . | . . . . . . . . . Retrieved Components . | . . . . . . . . . Parts Scanalyzed 6 | . . . 1 . . . 5 . Part Schematics Acquired 6 | . . . 1 . . . 5 . Parts Damaged 2 | . . . . . . . 2 . Bothacking | -11 -10 -10 -9 -9 -9 -8 -8 -7 ------------ Run | Scr Mat Min Mat Min Exi Min Mat Fac Used RIF Installer . | . . . . . . . . . Robots Hacked . | . . . . . . . . . Non-combat . | . . . . . . . . . Combat . | . . . . . . . . . Robot Hacks Applied . | . . . . . . . . . Relay Couplers Released . | . . . . . . . . . Robots Rewired . | . . . . . . . . . Allies Hacked . | . . . . . . . . . Hacks Repelled . | . . . . . . . . . Allies | -11 -10 -10 -9 -9 -9 -8 -8 -7 -------- Run | Scr Mat Min Mat Min Exi Min Mat Fac Total Allies 6 | . . 2 1 3 . . . . Largest Group 4 | . . 2 2 4 4 1 . . Highest-Rated Group 50 | . . 47 47 50 50 10 . . Highest-Rated Ally 31 | . . 31 31 16 16 10 . . Total Orders 9 | . . . . 2 7 . . . STAY 6 | . . . . 1 5 . . . FOLLOW 3 | . . . . 1 2 . . . Ally Attacks 36 | . . . 19 4 6 7 . . Total Damage 793 | . . . 298 66 70 359 . . Kills 9 | . . . 4 3 2 . . . Allies Corrupted . | . . . . . . . . . Allies Melted 2 | . . . . . . 2 . . Turrets Deployed 1 | . . . . . . 1 . . Intel | -11 -10 -10 -9 -9 -9 -8 -8 -7 ------- Run | Scr Mat Min Mat Min Exi Min Mat Fac Robot Analysis Total 5 | . 5 . . . . . . . Derelict Logs Recovered 3 | . . 1 . 2 . . . . Drone Launches . | . . . . . . . . . Drone Recoveries . | . . . . . . . . . Exploration | -11 -10 -10 -9 -9 -9 -8 -8 -7 ------------- Run | Scr Mat Min Mat Min Exi Min Mat Fac Turns Passed 10976 | 232 1383 1220 1283 1005 2850 312 1846 845 Spaces Moved 5135 | 103 653 650 602 542 1288 157 812 328 Core 14 | 14 . . . . . . . . Treads 3151 | 89 653 650 602 542 585 . . 30 Legs 1970 | . . . . . 703 157 812 298 Wheels . | . . . . . . . . . Hover . | . . . . . . . . . Flight . | . . . . . . . . . Fastest Speed 50 | 50 160 180 180 180 150 150 180 180 Average Speed 179 | 145 169 180 180 180 180 179 184 189 Slowest Speed 285 | 160 180 180 180 180 240 180 270 285 Overloaded Moves . | . . . . . . . . . Propulsion Burnouts . | . . . . . . . . . Robots Hopped . | . . . . . . . . . Cave-ins Triggered . | . . . . . . . . . Exploration Rate (%) 58 | 6 98 96 56 98 90 26 49 9 Regions Visited 8 Branch Regions 4 Pre-discovered Areas 2 | . . . . 1 1 . . . Known Exits Taken 3 | . 1 1 1 . . . . . Unknown Exits Taken 5 | 1 . . . 1 1 1 1 . Scrap Searched 4 | . . 2 . 1 . 1 . . Spaces Dug 3 | . . . 1 . . . 2 . Terrain Destroyed 24 | . . . 1 . 13 5 5 . Melee . | . . . . . . . . . Projectile 7 | . . . 1 . . 3 3 . AOE 17 | . . . . . 13 2 2 . Terrain Rammed . | . . . . . . . . . Walls Destroyed . | . . . . . . . . . Machines Disabled . | . . . . . . . . . Actions | -11 -10 -10 -9 -9 -9 -8 -8 -7 --------- Run | Scr Mat Min Mat Min Exi Min Mat Fac Total 6265 | 139 817 685 728 564 1638 187 1069 438 Wait 352 | . 54 11 32 6 72 6 144 27 Move 5127 | 102 652 649 601 541 1287 156 811 328 Hop . | . . . . . . . . . Pick Up 154 | 7 23 7 18 4 70 9 13 3 Fast Attach 45 | 3 5 . 5 . 12 2 12 6 Attach 44 | 2 3 . 3 1 17 4 7 7 Detach 19 | . 3 . 1 . 10 1 2 2 Swap 48 | . 7 . 14 3 12 . 11 1 Drop 114 | . 8 7 15 4 52 7 19 2 Fire 360 | 25 62 11 38 5 106 2 49 62 Melee . | . . . . . . . . . Ram . | . . . . . . . . . Kick 1 | . . . . . . . 1 . Crush 1 | . . . 1 . . . . . Escape Stasis . | . . . . . . . . . Rewire . | . . . . . . . . . Trap . | . . . . . . . . . Miscellaneous . | . . . . . . . . . Route ------- -11/Scrapyard -10/Materials (discovered 5 exits: *Mat x3 / *Min x2) -10/Mines (discovered 2 exits: *Mat x2) -9/Materials (discovered 4 exits: *Mat x2 / *Min x2) -9/Mines (discovered 3 exits: *Mat x2 / *Exi) -9/Exiles (discovered 2 exits: [*Min x2]) -8/Mines -8/Materials (discovered 2 exits: *Fac / [*Sto]) -7/Factory History --------- Turn | Location | Event 9 | -11/Scrapyard | Discovered new exit (range 15) 233 | -11/Scrapyard | Entered Materials 333 | -10/Materials | Build established: Mutant 506 | -10/Materials | Discovered new exit (range 7) 548 | -10/Materials | Identified exit to Mines 643 | -10/Materials | Discovered exit to Mines (range 7) 837 | -10/Materials | Discovered new exit (range 10) 1189 | -10/Materials | Repaired Assault Rifle 1403 | -10/Materials | Identified exit to Materials 1403 | -10/Materials | Central database locked down 1616 | -10/Materials | Entered Mines 1797 | -10/Mines | Met a Derelict shopkeep closing up shop 1964 | -10/Mines | Discovered exit to Materials (range 6) 2214 | -10/Mines | Met a Derelict who couldn't figure out how to use a Trap Extractor 2418 | -10/Mines | Learned Materials stockpile data 2596 | -10/Mines | Discovered exit to Materials (range 5) 2836 | -10/Mines | Entered Materials 2836 | -9/Materials | Accompanied by 2 allies 2836 | -9/Materials | Evolved 2 slots: Utility x2 2841 | -9/Materials | Led the pair of lost Derelicts to an unsafe place 3300 | -9/Materials | Discovered new exit (range 9) 3439 | -9/Materials | Build established: Scavenger-Mutant 3583 | -9/Materials | Discovered new exit (range 10) 3628 | -9/Materials | Identified exit to Mines 3801 | -9/Materials | Build established: Hauler-Mutant 3936 | -9/Materials | Discovered new exit (range 15) 4119 | -9/Materials | Entered Mines 4119 | -9/Mines | Accompanied by 1 ally 4124 | -9/Mines | Learned location of Storage (-8) 4347 | -9/Mines | Deemed a non-threat by the Exiles lab entrance 4348 | -9/Mines | Discovered new exit (range 5) 4529 | -9/Mines | Found a damaged Exp. Sensor Array with a note attached 4534 | -9/Mines | Found Prototype Device 4596 | -9/Mines | Discovered new exit (range 10) 4652 | -9/Mines | Learned Materials stockpile data 4677 | -9/Mines | Assisted by bots powering up and referring to "LRC-V3" 4839 | -9/Mines | A weapon hastily lodged in a ceiling crevice suddenly fell to the ground 4863 | -9/Mines | Received a Rocket Launcher from a helpful Derelict 4919 | -9/Mines | Discovered new exit (range 12) 5124 | -9/Mines | Entered Exiles 5124 | -9/Exiles | Accompanied by 4 allies 5148 | -9/Exiles | Discovered new exit (range 15) 5170 | -9/Exiles | Met 8R-AWN 5201 | -9/Exiles | Met EX-HEX 5321 | -9/Exiles | Met EX-DEC 5353 | -9/Exiles | Learned location of Zion (-7) 5511 | -9/Exiles | Discovered new exit (range 10) 5687 | -9/Exiles | Met EX-BIN 5715 | -9/Exiles | Aligned with FarCom system 5717 | -9/Exiles | Given EX-Vault access code 5765 | -9/Exiles | Opened EX-Vault 5775 | -9/Exiles | Found Superbattery 5782 | -9/Exiles | Found 0b10 Alert Chip 5785 | -9/Exiles | Found Field Lobotomy Kit 5830 | -9/Exiles | Warned to stay clear of 0b10 Research branches 6257 | -9/Exiles | Attacked by the Exiles 6395 | -9/Exiles | Core integrity fell below 50% 6429 | -9/Exiles | Lost 5 parts (2n2u1w) 6514 | -9/Exiles | Destroyed 8R-AWN 6520 | -9/Exiles | Found Prototype Ballistic Gun 6530 | -9/Exiles | Lost 4 parts (2n2w) 6534 | -9/Exiles | Found Prototype Protection 6548 | -9/Exiles | Found Prototype Device 6557 | -9/Exiles | Found Prototype Ballistic Gun 6989 | -9/Exiles | Destroyed EX-HEX 7007 | -9/Exiles | Destroyed EX-DEC 7029 | -9/Exiles | Destroyed EX-BIN 7398 | -9/Exiles | Found Prototype Processor 7578 | -9/Exiles | Found Prototype Energy Gun 7578 | -9/Exiles | Identified AWS/EX-DEC 7654 | -9/Exiles | Found Deploy-a-Sentry 7676 | -9/Exiles | Identified AS-neutralizer No. 17b 7974 | -9/Exiles | Stole four prototypes: Superbattery, 0b10 Alert Chip, Field Lobotomy Kit, Deploy-a-Sentry 7974 | -9/Exiles | Entered Mines 7974 | -8/Mines | Accompanied by 1 ally 7979 | -8/Mines | Core integrity fell below 20% 8070 | -8/Mines | AD-0RF came to Exiles' defense 8073 | -8/Mines | DAS Turret deployed 8090 | -8/Mines | Identified 8R-AWN's Boregun (x2) 8099 | -8/Mines | Destroyed AD-0RF 8274 | -8/Mines | Discovered new exit (range 7) 8286 | -8/Mines | Entered Materials 8286 | -8/Materials | Evolved 2 slots: Utility x2 8286 | -8/Materials | Discovered new exit (range 15) 8297 | -8/Materials | Identified 8R-AWN's Armor/EX 8684 | -8/Materials | Identified Exp. Sensor Array 9543 | -8/Materials | Discovered new exit (range 16) 10015 | -8/Materials | Identified Exp. Targeting Computer 10132 | -8/Materials | Entered Factory 10132 | -7/Factory | Evolved 2 slots: Utility x2 10802 | -7/Factory | Lost 3 parts (2u1w) 10977 | -7/Factory | Self-destructed Last Messages --------------- 10959_ HV Slug penetrates H-55 Commando. 10959_ H-55 Commando suffers critical hit. 10959_ Destroyed Lgt. Nuclear Core. 10959_ HV Slug penetrates H-55 Commando. 10961_ Penetrated by Slug. 10962_ HV Slug penetrates H-55 Commando. 10962_ H-55 Commando suffers critical hit. 10962_ Destroyed Carbon-fiber Leg. 10962_ HV Slug penetrates Wall. 10964_ K-01 Serf collects debris. 10964_ Penetrated by Slug. 10965_ HV Slug penetrates H-55 Commando. 10967_ Penetrated by Slug. 10971_ HV Slug penetrates H-55 Commando. 10971_ H-55 Commando suffers critical hit. 10971_ Destroyed Gauss Rifle. 10971_ HV Slug penetrates H-55 Commando. 10974_ H-55 Commando suffers critical hit. 10974_ H-55 Commando destroyed. 10976_ PJP3//MGQIAPZ